[Event "10th LCC FIDE Open 2018"]
[Site "London"]
[Date "2018.12.10"]
[Round "3"]
[White "Eggleston, David J"]
[Black "Keetman, Maaike"]
[Result "1-0"]
[ECO "B48"]
[WhiteElo "2397"]
[BlackElo "2173"]
[Annotator "RC"]
[PlyCount "63"]
[EventDate "2018.12.09"]
[EventType "swiss"]
[EventCountry "ENG"]
[SourceTitle "playchess.com"]
[Source "ChessBase"]
[SourceQuality "1"]
[TimeControl "40/5400+30:1800+30"]

1. e4 {[%emt 0:00:00]} c5 {[%emt 0:00:00]} 2. Nf3 {[%emt 0:00:00]} e6 {[%emt 0:00:00]} 3. d4 {[%emt 0:00:00]} cxd4 {[%emt 0:00:00]} 4. Nxd4 {[%emt 0:00:00]} Nc6 {[%emt 0:00:00]} 5. Nc3 {[%emt 0:00:00]} Qc7 {[%emt 0:00:00]} 6. Be3 {[%emt 0:00:00]} a6 {[%emt 0:00:02]} 7. Qd2 {[%emt 0:00:05]} Nf6 {[%emt 0:00:22]} 8. O-O-O {[%emt 0:00:10]} Be7 {[%emt 0:00:09]} 9. f3 {[%emt 0:00:05]} b5 {[%emt 0:00:09]} 10. g4 {[%emt 0:00:08]} Nxd4 {[%emt 0:00:29]} 11. Qxd4 {[%emt 0:00:08]} Bb7 {[%emt 0:00:07]} 12. g5 {[%emt 0:00:11]} Nh5 {[%emt 0:00:08]} 13. Kb1 {[%emt 0:00:07]} Rc8 {[%emt 0:00:45]} 14. Qd2 {[%emt 0:00:20]} g6 {[%emt 0:05:03]} 15. Bh3 {[%emt 0:04:19]} b4 {[%emt 0:05:40]} 16. Ne2 {[%emt 0:01:33]} d5 {[%emt 0:14:30]} 17. e5 {[%emt 0:07:00]} O-O {[%emt 0:06:04]} 18. Bg4 {[%emt 0:03:42]} Ng7 {[%emt 0:04:42]} 19. h4 {[%emt 0:00:58]} a5 {[%emt 0:10:33]} 20. h5 {[%emt 0:07:20]} Nf5 {[%emt 0:06:50]} 21. Bxf5 {[%emt 0:02:19]} exf5 {[%emt 0:00:14]} 22. hxg6 {[%emt 0:01:22]} fxg6 {[%emt 0:00:33]} 23. Nd4 {[%emt 0:06:08]} Bc5 {[%emt 0:04:48]} 24. f4 {[%emt 0:03:43]} Rfe8 {[%emt 0:04:04]} 25. Nb5 {[%emt 0:04:56]} Qb6 {[%emt 0:01:56]} 26. Bxc5 {[%emt 0:02:58]} Qxb5 {[%emt 0:01:26]} 27. Rxh7 {[%emt 0:07:47]} Kxh7 {[%emt 0:01:02]} 28. Qh2+ {[%emt 0:00:15]} Kg7 {[%emt 0:01:12]} 29. Qh6+ {[%emt 0:00:07]} Kf7 {[%emt 0:00:05]} 30. Qh7+ {[%emt 0:00:10]} Ke6 {[%emt 0:00:04]} 31. Qxg6+ {[%emt 0:00:06]} Kd7 {[%emt 0:00:03]} 32. Qd6# {[%emt 0:00:07]} 1-0

[Event "10th LCC FIDE Open 2018"]
[Site "London"]
[Date "2018.12.10"]
[Round "3"]
[White "Hill, Alistair"]
[Black "Gerlach, Felix Tobias"]
[Result "0-1"]
[ECO "A72"]
[WhiteElo "2219"]
[BlackElo "2050"]
[Annotator "NA RC"]
[PlyCount "70"]
[EventDate "2018.12.09"]
[EventType "swiss"]
[EventCountry "ENG"]
[SourceTitle "playchess.com"]
[Source "ChessBase"]
[SourceQuality "1"]
[TimeControl "40/5400+30:1800+30"]

1. d4 {[%emt 0:11:23]} Nf6 {[%emt 0:00:00]} 2. c4 {[%emt 0:00:05]} g6 {[%emt 0:00:00]} 3. Nc3 {[%emt 0:00:03]} Bg7 {[%emt 0:00:00]} 4. e4 {[%emt 0:00:05]} d6 {[%emt 0:00:00]} 5. Be2 {[%emt 0:00:22]} O-O {[%emt 0:00:00]} 6. Bg5 {[%emt 0:00:04]} c5 {[%emt 0:00:06]} 7. d5 {[%emt 0:00:15]} e6 {[%emt 0:00:06]} 8. Nf3 {[%emt 0:00:29]} exd5 {[%emt 0:01:24]} 9. cxd5 {[%emt 0:00:06]} h6 {[%emt 0:00:25]} 10. Bf4 {[%emt 0:00:05]} g5 {[%emt 0:03:02] A72: Modern Benoni: Classical: Lines with Bg5} 11. Be3 {[%emt 0:01:08]} (11. Bg3 Nh5 12. O-O Na6 13. Re1 Nc7 14. Bd3 Nxg3 15. hxg3 b5 16. e5 c4 17. Bc2 b4 18. Ne4 dxe5 19. d6 {0-1 (38) Kelires,A (2523)-Bologan,V (2600) Batumi 2018}) 11... b5 {[%emt 0:00:41]} 12. Qc2 $146 {[%emt 0:56:37]} ({Predecessor:} 12. Bxb5 Nxe4 13. Nxe4 Qa5+ 14. Qd2 Qxb5 15. Nxd6 Qxb2 16. Qxb2 Bxb2 17. Rb1 Bc3+ 18. Bd2 Bxd2+ 19. Kxd2 {½-½ (38) Forster,W (1971)-Pomeroy,A (2102) Wellington 2016}) 12... b4 {[%emt 0:15:38]} 13. Nd1 $1 {[%emt 0:00:02]} Re8 {[%emt 0:18:07]} 14. Nd2 {[%emt 0:00:28]} Ba6 {[%emt 0:00:40]} 15. Bxa6 {[%emt 0:01:19]} Nxa6 {[%emt 0:01:08]} 16. O-O {[%emt 0:04:36]} Nc7 {[%emt 0:03:32]} 17. Re1 {[%emt 0:00:01]} Nh5 {[%emt 0:02:21]} 18. Nf1 {[%emt 0:01:45]} ({White should try} 18. a3 $11) 18... Qf6 {[%emt 0:02:12]} 19. a3 {[%emt 0:04:16]} bxa3 {[%emt 0:09:25]} 20. Rxa3 {[%emt 0:00:02]} Qg6 {[%emt 0:00:12]} 21. Qa4 {[%emt 0:10:42]} (21. Nc3 $1 $11) 21... Qxe4 {[%emt 0:16:05]} 22. Qc6 {[%emt 0:00:01]} Nf4 {[%emt 0:00:17]} 23. f3 {[%emt 0:00:26]} Qc2 {[%emt 0:00:21]} 24. Nf2 {[%emt 0:03:18]} Nfxd5 $19 {[%emt 0:00:30]} 25. Rd3 {[%emt 0:01:51]} Nb4 {[%emt 0:03:16]} 26. Qxd6 {[%emt 0:01:12]} Nxd3 {[%emt 0:02:44]} 27. Nxd3 {[%emt 0:00:03]} Rad8 {[%emt 0:01:07]} 28. Qxc7 {[%emt 0:00:12]} Rxd3 {[%emt 0:01:36]} 29. Qc6 {[%emt 0:01:01]} Rdxe3 {[%emt 0:01:41]} 30. Rxe3 {[%emt 0:01:12]} Rxe3 {[%emt 0:01:41]} 31. Nxe3 {[%emt 0:01:20]} Bd4 {[%emt 0:04:06]} 32. Qe8+ {[%emt 0:00:26]} Kg7 {[%emt 0:00:12]} 33. Qe5+ {[%emt 0:00:55]} Bxe5 {[%emt 0:00:38]} 34. Nxc2 {[%emt 0:00:03]} Bxb2 {[%emt 0:00:13]} 35. Kf2 {[%emt 0:00:04]} a5 {[%emt 0:00:17]} 0-1

[Event "10th LCC FIDE Open 2018"]
[Site "London"]
[Date "2018.12.10"]
[Round "3"]
[White "Englisch, Colya"]
[Black "Fischer, Daniel"]
[Result "0-1"]
[ECO "D11"]
[WhiteElo "2105"]
[BlackElo "2324"]
[Annotator "RC"]
[PlyCount "90"]
[EventDate "2018.12.09"]
[EventType "swiss"]
[EventCountry "ENG"]
[SourceTitle "playchess.com"]
[Source "ChessBase"]
[SourceQuality "1"]
[TimeControl "40/5400+30:1800+30"]

1. Nf3 {[%emt 0:00:00]} d5 {[%emt 0:00:00]} 2. g3 {[%emt 0:00:39]} Bg4 {[%emt 0:00:21]} 3. d4 {[%emt 0:04:19]} e6 {[%emt 0:03:21]} 4. Bg2 {[%emt 0:00:33]} Nf6 {[%emt 0:00:31]} 5. O-O {[%emt 0:00:19]} c6 {[%emt 0:06:57]} 6. c4 {[%emt 0:02:29]} Nbd7 {[%emt 0:00:37]} 7. b3 {[%emt 0:05:35]} Be7 {[%emt 0:02:03]} 8. Bb2 {[%emt 0:03:35]} O-O {[%emt 0:01:31]} 9. Nc3 {[%emt 0:10:28]} Rc8 {[%emt 0:03:59]} 10. Re1 {[%emt 0:06:43]} Nb6 {[%emt 0:10:55]} 11. Ne5 {[%emt 0:06:16]} Bh5 {[%emt 0:00:28]} 12. c5 {[%emt 0:18:49]} Nbd7 {[%emt 0:00:47]} 13. Nd3 {[%emt 0:02:41]} Bg6 {[%emt 0:12:42]} 14. e3 {[%emt 0:05:09]} h6 {[%emt 0:08:32]} 15. Ne2 {[%emt 0:08:17]} Qc7 {[%emt 0:05:03]} 16. Rc1 {[%emt 0:03:56]} Bh7 {[%emt 0:05:19]} 17. Bf1 {[%emt 0:07:14]} Ne4 {[%emt 0:07:42]} 18. f3 {[%emt 0:02:35]} Nef6 {[%emt 0:05:07]} 19. Qd2 {[%emt 0:01:20]} Ne8 {[%emt 0:02:24]} 20. f4 {[%emt 0:01:13]} Nef6 {[%emt 0:05:43]} 21. Nc3 {[%emt 0:01:30]} Rcd8 {[%emt 0:03:22]} 22. Ne5 {[%emt 0:03:17]} Nxe5 {[%emt 0:01:45]} 23. fxe5 {[%emt 0:00:08]} Nd7 {[%emt 0:00:23]} 24. Bd3 {[%emt 0:00:26]} Bxd3 {[%emt 0:02:16]} 25. Qxd3 {[%emt 0:00:02]} f6 {[%emt 0:00:52]} 26. exf6 {[%emt 0:00:38]} Bxf6 {[%emt 0:00:07]} 27. e4 {[%emt 0:01:13]} dxe4 {[%emt 0:05:29]} 28. Nxe4 {[%emt 0:00:49]} Rfe8 {[%emt 0:02:38]} 29. Qc4 {[%emt 0:02:14]} b5 {[%emt 0:01:29]} 30. cxb6 {[%emt 0:00:15]} Nxb6 {[%emt 0:01:02]} 31. Nxf6+ {[%emt 0:00:10]} gxf6 {[%emt 0:00:07]} 32. Qxc6 {[%emt 0:00:43]} Qf7 {[%emt 0:00:23]} 33. Qc7 {[%emt 0:00:33]} Rd7 {[%emt 0:00:39]} 34. Qf4 {[%emt 0:00:19]} Kh7 {[%emt 0:00:33]} 35. Rc6 {[%emt 0:00:48]} Nd5 {[%emt 0:00:43]} 36. Qe4+ {[%emt 0:00:14]} f5 {[%emt 0:00:04]} 37. Qe2 {[%emt 0:01:07]} Qg6 {[%emt 0:00:49]} 38. Kh1 {[%emt 0:01:01]} Qf6 {[%emt 0:00:27]} 39. Rxe6 {[%emt 0:00:36]} Rxe6 {[%emt 0:00:04]} 40. Qxe6 {[%emt 0:00:11]} Re7 {[%emt 0:00:10]} 41. Qxd5 {[%emt 0:03:42]} Rxe1+ {[%emt 0:00:14]} 42. Kg2 {[%emt 0:00:08]} Re2+ {[%emt 0:02:01]} 43. Kh3 {[%emt 0:04:38]} Rxb2 {[%emt 0:00:28]} 44. Qd7+ {[%emt 0:00:30]} Kg8 {[%emt 0:00:38]} 45. Qxa7 {[%emt 0:06:07]} Qf7 {[%emt 0:02:24]} 0-1

[Event "10th LCC FIDE Open 2018"]
[Site "London"]
[Date "2018.12.10"]
[Round "3"]
[White "Seymour, Timothy P"]
[Black "Ghukasyan, Siranush"]
[Result "0-1"]
[ECO "A13"]
[WhiteElo "2080"]
[BlackElo "2245"]
[Annotator "NA RC"]
[PlyCount "68"]
[EventDate "2018.12.09"]
[EventType "swiss"]
[EventCountry "ENG"]
[SourceTitle "playchess.com"]
[Source "ChessBase"]
[SourceQuality "1"]
[TimeControl "40/5400+30:1800+30"]

{[%evp 17,61,15,58,38,32767,75,82,28,18,17,22,32767,32767,-6,0,32767,-74,32767,-104,-113,32767,-101,-119,-127,32767,-161,-165,-158,-118,-127,-152,-225,-200,-194,-290,-206,-192,-238,32767,32767,-251,32767,32767,32767,-186,-485]} 1. Nf3 {[%emt 0:00:00]} d5 {[%emt 0:00:00]} 2. e3 {[%emt 0:00:00]} Nf6 {[%emt 0:00:45]} 3. c4 {[%emt 0:00:00]} e6 {[%emt 0:01:59]} 4. b3 {[%emt 0:00:00]} Be7 {[%emt 0:00:16]} 5. Bb2 {[%emt 0:00:00]} O-O {[%emt 0:00:08]} 6. Nc3 {[%emt 0:00:00]} c5 {[%emt 0:01:44]} 7. cxd5 {[%emt 0:00:14]} exd5 {[%emt 0:00:07]} 8. d4 {[%emt 0:00:09] A13: English Opening: 1...e6} b6 {[%emt 0:01:05]} (8... Nc6 9. Be2 Bg4 10. dxc5 Bxc5 11. O-O a6 12. h3 Be6 13. Bd3 Qe7 14. a3 Rad8 15. Ne2 Ne4 16. b4 Bd6 17. Rc1 a5 18. b5 Nb8 19. Qa4 Nd7 {1-0 (48) Howell,D (2689)-Kazhgaleyev,M (2582) Batumi 2018}) 9. Rc1 {[%emt 0:17:47] LiveBook: 5 Games} Be6 {[%emt 0:01:05]} 10. Bd3 {[%emt 0:08:39]} Nbd7 {[%emt 0:03:52]} 11. O-O {[%emt 0:01:43]} h6 $146 {[%emt 0:01:05]} ({Predecessor:} 11... Qb8 12. h3 h6 13. Qe2 Re8 14. Rfd1 Bf8 {1-0 (28) Vasilenko,A-Berezjuk,S Moscow (Russia) 1977}) 12. Ne5 {[%emt 0:09:35]} (12. Ne2 $16) 12... Nxe5 {[%emt 0:11:23]} 13. dxe5 {[%emt 0:00:02]} Ng4 {[%emt 0:03:08]} 14. Be2 {[%emt 0:12:03]} Nxe5 {[%emt 0:03:03]} 15. f4 {[%emt 0:09:42]} (15. Nxd5 $5 Bxd5 16. Bxe5 $11) 15... d4 {[%emt 0:07:15]} 16. Nb5 {[%emt 0:05:22]} a6 {[%emt 0:06:22]} 17. Na3 {[%emt 0:09:38]} Nc6 {[%emt 0:02:27]} 18. Bf3 {[%emt 0:06:38]} Bd5 {[%emt 0:00:42]} 19. exd4 {[%emt 0:03:54]} Nxd4 {[%emt 0:03:01]} 20. Bxd4 {[%emt 0:01:57]} cxd4 {[%emt 0:01:30]} 21. Nc2 {[%emt 0:01:34]} Bxf3 {[%emt 0:01:56]} 22. Rxf3 {[%emt 0:00:50]} Bf6 {[%emt 0:00:15]} 23. Rd3 {[%emt 0:00:39]} Rc8 {[%emt 0:00:12]} 24. Nb4 {[%emt 0:04:33]} (24. Ne3 $17) 24... Qd6 {[%emt 0:01:00]} 25. Rxc8 {[%emt 0:01:27]} Rxc8 {[%emt 0:00:08]} 26. Qd2 {[%emt 0:00:12]} Qe6 {[%emt 0:03:25]} 27. h3 {[%emt 0:02:25]} a5 {[%emt 0:08:38]} 28. Nc2 {[%emt 0:00:03]} Qe4 {[%emt 0:00:25]} 29. Ne1 {[%emt 0:03:30]} Rc3 {[%emt 0:00:41]} 30. Kf2 {[%emt 0:00:53]} g5 {[%emt 0:02:33]} 31. g3 $19 {[%emt 0:00:18]} (31. Kf1) 31... gxf4 {[%emt 0:00:29]} 32. Qxf4 {[%emt 0:00:13]} Qxf4+ {[%emt 0:00:18]} 33. gxf4 {[%emt 0:00:02]} Bh4+ {[%emt 0:00:00]} 34. Ke2 {[%emt 0:00:02]} Bxe1 {[%emt 0:00:10]} 0-1

[Event "10th LCC FIDE Open 2018"]
[Site "London"]
[Date "2018.12.12"]
[Round "4"]
[White "Arkell, Keith C"]
[Black "Ogunshola, Olugbemiga (Ben)"]
[Result "1-0"]
[ECO "A42"]
[WhiteElo "2453"]
[BlackElo "2172"]
[Annotator "ChessBase"]
[PlyCount "70"]
[EventDate "2018.12.09"]
[EventType "swiss"]
[EventCountry "ENG"]
[SourceTitle "playchess.com"]
[Source "ChessBase"]
[SourceQuality "1"]
[TimeControl "40/5400+30:1800+30"]

1. d4 {[%emt 0:08:17]} g6 {[%emt 0:00:36]} 2. e4 {[%emt 0:00:32]} d6 {[%emt 0:00:10]} 3. c4 {[%emt 0:00:23]} Bg7 {[%emt 0:00:19]} 4. Nc3 {[%emt 0:00:05]} Nc6 {[%emt 0:02:44]} 5. d5 {[%emt 0:01:38]} Nd4 {[%emt 0:01:18]} 6. Be3 {[%emt 0:00:17]} c5 {[%emt 0:00:11]} 7. Nge2 {[%emt 0:02:44]} Bg4 {[%emt 0:05:00]} 8. f3 {[%emt 0:03:55]} Nxe2 {[%emt 0:00:28]} 9. Bxe2 {[%emt 0:00:20]} Bd7 {[%emt 0:00:04]} 10. Qd2 {[%emt 0:00:25]} Nf6 {[%emt 0:00:46]} 11. Bh6 {[%emt 0:00:29]} O-O {[%emt 0:01:59]} 12. h4 {[%emt 0:02:44]} Qa5 {[%emt 0:09:27]} 13. h5 {[%emt 0:01:50]} a6 {[%emt 0:02:57]} 14. hxg6 {[%emt 0:00:39]} fxg6 {[%emt 0:00:06]} 15. Bxg7 {[%emt 0:00:14]} Kxg7 {[%emt 0:00:07]} 16. Qh6+ {[%emt 0:00:23]} Kg8 {[%emt 0:01:09]} 17. f4 {[%emt 0:04:23]} Rf7 {[%emt 0:01:55]} 18. e5 {[%emt 0:07:03]} Ne4 {[%emt 0:16:04]} 19. e6 {[%emt 0:00:43]} Rg7 {[%emt 0:00:02]} 20. exd7 {[%emt 0:01:12]} Qb4 {[%emt 0:00:12]} 21. O-O {[%emt 0:05:13]} Ng3 {[%emt 0:01:34]} 22. Rfc1 {[%emt 0:04:54]} Nf5 {[%emt 0:02:09]} 23. Qh3 {[%emt 0:00:32]} Qxb2 {[%emt 0:01:24]} 24. Qd3 {[%emt 0:03:43]} Qb6 {[%emt 0:03:11]} 25. Bg4 {[%emt 0:01:29]} Rf8 {[%emt 0:00:24]} 26. Ne4 {[%emt 0:02:13]} h6 {[%emt 0:00:07]} 27. Ng3 {[%emt 0:00:54]} Nd4 {[%emt 0:03:53]} 28. Rab1 {[%emt 0:00:53]} Qc7 {[%emt 0:00:18]} 29. Qe4 {[%emt 0:01:04]} b6 {[%emt 0:04:31]} 30. Rf1 {[%emt 0:01:43]} Kh8 {[%emt 0:02:26]} 31. Be6 {[%emt 0:00:37]} b5 {[%emt 0:08:59]} 32. f5 {[%emt 0:00:27]} Rf6 {[%emt 0:04:45]} 33. fxg6 {[%emt 0:00:35]} Rgxg6 {[%emt 0:00:02]} 34. Rf2 {[%emt 0:00:20]} Rf4 35. Rxf4 {[%emt 0:00:29]} Rf6 {[%emt 0:00:32]} 1-0

[Event "10th LCC FIDE Open 2018"]
[Site "London"]
[Date "2018.12.12"]
[Round "4"]
[White "Cherniaev, Alexander"]
[Black "Beckett, Chris J"]
[Result "1-0"]
[ECO "E00"]
[WhiteElo "2393"]
[BlackElo "2165"]
[Annotator "RC"]
[PlyCount "93"]
[EventDate "2018.12.09"]
[EventType "swiss"]
[EventCountry "ENG"]
[SourceTitle "playchess.com"]
[Source "ChessBase"]
[SourceQuality "1"]
[TimeControl "40/5400+30:1800+30"]

1. d4 {[%emt 0:00:00]} e6 {[%emt 0:00:54]} 2. c4 {[%emt 0:00:01]} Nf6 {[%emt 0:00:42]} 3. Bg5 {[%emt 0:01:36]} Bb4+ {[%emt 0:05:44]} 4. Nd2 {[%emt 0:00:10]} h6 {[%emt 0:13:41]} 5. Bh4 {[%emt 0:00:09]} c5 {[%emt 0:08:50]} 6. dxc5 {[%emt 0:00:58]} Nc6 {[%emt 0:05:20]} 7. e3 {[%emt 0:06:23]} O-O {[%emt 0:09:36]} 8. a3 {[%emt 0:05:49]} Bxc5 {[%emt 0:04:10]} 9. Ngf3 {[%emt 0:03:28]} d5 {[%emt 0:05:54]} 10. cxd5 {[%emt 0:03:29]} exd5 {[%emt 0:00:10]} 11. Bd3 {[%emt 0:00:42]} Be6 {[%emt 0:03:25]} 12. O-O {[%emt 0:06:41]} Be7 {[%emt 0:03:40]} 13. b4 {[%emt 0:10:42]} Rc8 {[%emt 0:02:22]} 14. Qb1 {[%emt 0:05:15]} g5 {[%emt 0:05:24]} 15. Bg3 {[%emt 0:00:09]} Nh5 {[%emt 0:00:26]} 16. b5 {[%emt 0:07:51]} Nxg3 {[%emt 0:00:12]} 17. hxg3 {[%emt 0:00:17]} Nb8 {[%emt 0:02:39]} 18. Nd4 {[%emt 0:01:07]} Bf6 {[%emt 0:00:58]} 19. Qb4 {[%emt 0:09:40]} Qb6 {[%emt 0:02:48]} 20. N2b3 {[%emt 0:02:34]} Nd7 {[%emt 0:00:50]} 21. Rac1 {[%emt 0:03:36]} Ne5 {[%emt 0:02:04]} 22. Be2 {[%emt 0:04:29]} Nc4 {[%emt 0:01:31]} 23. a4 {[%emt 0:04:35]} a5 {[%emt 0:04:52]} 24. Qc3 {[%emt 0:00:04]} Ra8 {[%emt 0:07:08]} 25. Qc2 {[%emt 0:03:44]} Rfc8 {[%emt 0:00:45]} 26. Qa2 {[%emt 0:00:19]} Qd6 {[%emt 0:00:57]} 27. Rfd1 {[%emt 0:03:30]} Qb4 {[%emt 0:05:17]} 28. Nxe6 {[%emt 0:03:33]} fxe6 {[%emt 0:00:04]} 29. Qb1 {[%emt 0:00:05]} Qe7 {[%emt 0:01:58]} 30. e4 {[%emt 0:04:09]} Na3 {[%emt 0:00:49]} 31. Qd3 {[%emt 0:00:13]} Rd8 {[%emt 0:00:14]} 32. Bf3 {[%emt 0:03:51]} Bb2 {[%emt 0:01:36]} 33. Rc5 {[%emt 0:00:16]} dxe4 {[%emt 0:00:55]} 34. Qxe4 {[%emt 0:00:12]} Rxd1+ {[%emt 0:00:08]} 35. Bxd1 {[%emt 0:00:05]} Bg7 {[%emt 0:00:38]} 36. Bf3 {[%emt 0:01:06]} Rb8 {[%emt 0:00:31]} 37. Bg4 {[%emt 0:01:14]} e5 {[%emt 0:00:30]} 38. Rd5 {[%emt 0:04:11]} b6 {[%emt 0:00:34]} 39. Rd7 {[%emt 0:00:48]} Qf6 {[%emt 0:00:23]} 40. Nd2 {[%emt 0:01:19]} Rf8 {[%emt 0:00:44]} 41. Qd5+ {[%emt 0:30:52]} Kh8 {[%emt 0:30:09]} 42. Ne4 {[%emt 0:00:00]} Qg6 {[%emt 0:00:00]} 43. Rd6 {[%emt 0:00:00]} Qh7 {[%emt 0:00:00]} 44. Qd3 {[%emt 0:00:00]} h5 {[%emt 0:00:00]} 45. Be6 {[%emt 0:00:00]} h4 {[%emt 0:00:00]} 46. g4 {[%emt 0:00:00]} h3 {[%emt 0:00:00]} 47. gxh3 {[%emt 0:00:00]} 1-0

[Event "10th LCC FIDE Open 2018"]
[Site "London"]
[Date "2018.12.12"]
[Round "4"]
[White "D`Costa, Lorin A R"]
[Black "Smith, Andrew Philip"]
[Result "1-0"]
[ECO "A34"]
[WhiteElo "2390"]
[BlackElo "2157"]
[Annotator "RC"]
[PlyCount "73"]
[EventDate "2018.12.09"]
[EventType "swiss"]
[EventCountry "ENG"]
[SourceTitle "playchess.com"]
[Source "ChessBase"]
[SourceQuality "1"]
[TimeControl "40/5400+30:1800+30"]

1. Nf3 {[%emt 0:16:13]} c5 {[%emt 0:00:48]} 2. c4 {[%emt 0:02:21]} Nf6 {[%emt 0:00:45]} 3. Nc3 {[%emt 0:00:29]} d5 {[%emt 0:00:33]} 4. cxd5 {[%emt 0:00:15]} Nxd5 {[%emt 0:00:07]} 5. g3 {[%emt 0:00:36]} Nc6 {[%emt 0:00:32]} 6. Bg2 {[%emt 0:00:18]} Nc7 {[%emt 0:00:33]} 7. O-O {[%emt 0:00:37]} e5 {[%emt 0:00:57]} 8. a3 {[%emt 0:04:24]} f6 {[%emt 0:00:51]} 9. e3 {[%emt 0:13:03]} Be7 {[%emt 0:10:21]} 10. Re1 {[%emt 0:24:40]} O-O {[%emt 0:02:39]} 11. d4 {[%emt 0:06:43]} cxd4 {[%emt 0:07:56]} 12. exd4 {[%emt 0:00:55]} exd4 {[%emt 0:00:47]} 13. Ne2 {[%emt 0:04:08]} Bc5 {[%emt 0:14:30]} 14. b4 {[%emt 0:05:27]} Bb6 {[%emt 0:00:07]} 15. Nf4 {[%emt 0:04:08]} a6 {[%emt 0:03:36]} 16. Bb2 {[%emt 0:01:11]} Qd6 {[%emt 0:10:21]} 17. Nd2 {[%emt 0:02:30]} Qd8 {[%emt 0:13:41]} 18. Qb3+ {[%emt 0:02:30]} Kh8 {[%emt 0:00:18]} 19. Nc4 {[%emt 0:00:24]} Ba7 {[%emt 0:01:17]} 20. a4 {[%emt 0:01:07]} g5 {[%emt 0:10:14]} 21. Nd3 {[%emt 0:03:34]} Ne8 {[%emt 0:07:52]} 22. b5 {[%emt 0:00:35]} Ne5 {[%emt 0:07:39]} 23. Ncxe5 {[%emt 0:02:01]} fxe5 {[%emt 0:00:08]} 24. bxa6 {[%emt 0:00:25]} Nd6 {[%emt 0:01:12]} 25. Ba3 {[%emt 0:00:58]} Rb8 {[%emt 0:01:51]} 26. Qd5 {[%emt 0:00:40]} Rf6 {[%emt 0:01:16]} 27. Nxe5 {[%emt 0:02:24]} Kg7 {[%emt 0:01:21]} 28. Nd3 {[%emt 0:00:47]} Bf5 {[%emt 0:00:50]} 29. Rad1 {[%emt 0:00:30]} bxa6 {[%emt 0:00:42]} 30. Ne5 {[%emt 0:00:31]} Nf7 {[%emt 0:00:36]} 31. Nc6 {[%emt 0:00:31]} Qxd5 {[%emt 0:00:36]} 32. Bxd5 {[%emt 0:00:01]} Rb7 {[%emt 0:00:09]} 33. Nxa7 {[%emt 0:00:33]} Rxa7 {[%emt 0:00:03]} 34. Bc5 {[%emt 0:00:07]} Rd7 {[%emt 0:01:15]} 35. Bxd4 {[%emt 0:00:12]} Bc2 {[%emt 0:00:31]} 36. Rd2 {[%emt 0:00:47]} Bxa4 {[%emt 0:00:20]} 37. Re6 {[%emt 0:00:44]} 1-0